[Event "RUS-ch Blitz 2021"]
[Site "Sochi"]
[Date "2021.10.11"]
[Round "4.2"]
[White "Dreev, Aleksey"]
[Black "Bocharov, Dmitry"]
[Result "1/2-1/2"]
[ECO "E38"]
[WhiteElo "2635"]
[BlackElo "2517"]
[Annotator "ChessBase"]
[PlyCount "84"]
[EventDate "2021.10.11"]
[EventType "blitz"]
[EventCountry "RUS"]
[SourceTitle "playchess.com"]
[Source "ChessBase"]
[SourceQuality "1"]
[TimeControl "180+2"]

1. d4 {[%emt 0:00:00]} Nf6 {[%emt 0:00:00]} 2. c4 {[%emt 0:00:00]} e6 {[%emt 0:
00:07]} 3. Nc3 {[%emt 0:00:04]} Bb4 {[%emt 0:00:00]} 4. Qc2 {[%emt 0:00:00]} c5
{[%emt 0:00:06]} 5. dxc5 {[%emt 0:00:01]} Qc7 {[%emt 0:00:00]} 6. Nf3 {[%emt 0:
00:12]} Bxc5 {[%emt 0:00:00]} 7. e3 {[%emt 0:00:03]} a6 {[%emt 0:00:01]} 8. b3
{[%emt 0:00:00]} b6 {[%emt 0:00:07]} 9. Bb2 {[%emt 0:00:01]} Bb7 {[%emt 0:00:
03]} 10. Bd3 {[%emt 0:00:03]} Be7 {[%emt 0:00:17]} 11. Ne4 {[%emt 0:00:11]} Nc6
{[%emt 0:00:12]} 12. a3 {[%emt 0:00:17]} Nxe4 {[%emt 0:00:37]} 13. Bxe4 {
[%emt 0:00:02]} f5 {[%emt 0:00:00]} 14. Bd3 {[%emt 0:00:02]} O-O {[%emt 0:00:
06]} 15. O-O {[%emt 0:00:11]} Bf6 {[%emt 0:00:07]} 16. Rad1 {[%emt 0:00:01]}
Rad8 {[%emt 0:00:05]} 17. Rfe1 {[%emt 0:00:17]} Ne7 {[%emt 0:00:25]} 18. Be2 {
[%emt 0:00:30]} Ng6 {[%emt 0:00:29]} 19. Bxf6 {[%emt 0:00:45]} Rxf6 {[%emt 0:
00:00]} 20. Qd2 {[%emt 0:00:00]} d6 {[%emt 0:00:26]} 21. Nd4 {[%emt 0:00:32]}
f4 {[%emt 0:00:00]} 22. Bf3 {[%emt 0:00:00]} Nh4 {[%emt 0:00:15]} 23. e4 {
[%emt 0:00:14]} e5 {[%emt 0:00:02]} 24. Nc2 {[%emt 0:00:09]} Nxf3+ {[%emt 0:00:
03]} 25. gxf3 {[%emt 0:00:00]} Qc8 {[%emt 0:00:02]} 26. Kf1 {[%emt 0:00:08]} b5
{[%emt 0:00:00]} 27. Qc3 {[%emt 0:00:02]} Kh8 {[%emt 0:00:13]} 28. Nb4 {
[%emt 0:00:04]} Rf7 {[%emt 0:00:03]} 29. Nd5 {[%emt 0:00:00]} Bxd5 {[%emt 0:00:
03]} 30. Rxd5 {[%emt 0:00:05]} bxc4 {[%emt 0:00:00]} 31. Qxc4 {[%emt 0:00:00]}
Rc7 {[%emt 0:00:03]} 32. Qb4 {[%emt 0:00:05]} h6 {[%emt 0:00:05]} 33. Red1 {
[%emt 0:00:00]} Rc2 {[%emt 0:00:00]} 34. R5d2 {[%emt 0:00:05]} Qh3+ {[%emt 0:
00:09]} 35. Ke2 {[%emt 0:00:00]} Rxd2+ {[%emt 0:00:03]} 36. Rxd2 {[%emt 0:00:
00]} Qe6 {[%emt 0:00:01]} 37. Rd5 {[%emt 0:00:01]} Qc8 {[%emt 0:00:02]} 38. Qc4
{[%emt 0:00:06]} Qb7 {[%emt 0:00:02]} 39. Qb4 {[%emt 0:00:00]} Qc7 {[%emt 0:00:
02]} 40. Qc4 {[%emt 0:00:00]} Qb7 {[%emt 0:00:00]} 41. Qb4 {[%emt 0:00:01]} Qc7
{[%emt 0:00:01]} 42. Qc4 {[%emt 0:00:03]} Qb7 {[%emt 0:00:02]} 1/2-1/2

[Event "RUS-ch Blitz 2021"]
[Site "Sochi"]
[Date "2021.10.11"]
[Round "4.3"]
[White "Rozum, Ivan"]
[Black "Sarana, Alexey"]
[Result "0-1"]
[ECO "A13"]
[WhiteElo "2529"]
[BlackElo "2649"]
[Annotator "ChessBase"]
[PlyCount "68"]
[EventDate "2021.10.11"]
[EventType "blitz"]
[EventCountry "RUS"]
[SourceTitle "playchess.com"]
[Source "ChessBase"]
[SourceQuality "1"]
[TimeControl "180+2"]

1. b3 {[%emt 0:00:00]} Nf6 {[%emt 0:00:00]} 2. Bb2 {[%emt 0:00:08]} d5 {
[%emt 0:00:02]} 3. Nf3 {[%emt 0:00:00]} c5 {[%emt 0:00:00]} 4. e3 {[%emt 0:00:
06]} e6 {[%emt 0:00:15]} 5. c4 {[%emt 0:00:03]} Nc6 {[%emt 0:00:00]} 6. cxd5 {
[%emt 0:00:07]} exd5 {[%emt 0:00:00]} 7. d4 {[%emt 0:00:03]} Bg4 {[%emt 0:00:
09]} 8. Be2 {[%emt 0:00:04]} cxd4 {[%emt 0:00:09]} 9. Nxd4 {[%emt 0:00:02]}
Bb4+ {[%emt 0:00:00]} 10. Bc3 {[%emt 0:00:12]} Bxe2 {[%emt 0:00:11]} 11. Nxe2 {
[%emt 0:00:14]} Qa5 {[%emt 0:00:08]} 12. O-O {[%emt 0:00:08]} Bxc3 {[%emt 0:00:
00]} 13. Nbxc3 {[%emt 0:00:00]} O-O {[%emt 0:00:06]} 14. Qd2 {[%emt 0:00:05]}
Rad8 {[%emt 0:00:02]} 15. Rfd1 {[%emt 0:00:00]} Rfe8 {[%emt 0:00:06]} 16. Rac1
{[%emt 0:00:00]} h6 {[%emt 0:00:03]} 17. h3 {[%emt 0:00:03]} Re5 {[%emt 0:00:
14]} 18. Nd4 {[%emt 0:00:16]} Qb4 {[%emt 0:00:51]} 19. Na4 {[%emt 0:00:33]} Qd6
{[%emt 0:00:11]} 20. Nxc6 {[%emt 0:00:09]} bxc6 {[%emt 0:00:00]} 21. Qa5 {
[%emt 0:00:11]} Rd7 {[%emt 0:00:23]} 22. Qc5 {[%emt 0:00:07]} Qxc5 {[%emt 0:00:
15]} 23. Rxc5 {[%emt 0:00:04]} Rc7 {[%emt 0:00:07]} 24. Rdc1 {[%emt 0:00:04]}
Re6 {[%emt 0:00:00]} 25. Ra5 {[%emt 0:00:03]} Rd6 {[%emt 0:00:07]} 26. Nc5 {
[%emt 0:00:00]} d4 {[%emt 0:00:06]} 27. e4 {[%emt 0:00:30]} d3 {[%emt 0:00:05]}
28. e5 {[%emt 0:00:13]} d2 {[%emt 0:00:00]} 29. Rd1 {[%emt 0:00:03]} Re7 {
[%emt 0:00:00]} 30. Ne4 {[%emt 0:00:24]} Rd4 {[%emt 0:00:11]} 31. Nc3 {[%emt 0:
00:04]} Nd5 {[%emt 0:00:07]} 32. Nxd5 {[%emt 0:00:03]} cxd5 {[%emt 0:00:04]}
33. Kf1 {[%emt 0:00:02]} Rxe5 {[%emt 0:00:04]} 34. Rxa7 {[%emt 0:00:00]} Rde4 {
[%emt 0:00:00]} 0-1

[Event "RUS-ch Blitz 2021"]
[Site "Sochi"]
[Date "2021.10.11"]
[Round "4.4"]
[White "Murzin, Volodar"]
[Black "Sjugirov, Sanan"]
[Result "1/2-1/2"]
[ECO "B29"]
[WhiteElo "2513"]
[BlackElo "2663"]
[Annotator "ChessBase"]
[PlyCount "98"]
[EventDate "2021.10.11"]
[EventType "blitz"]
[EventCountry "RUS"]
[SourceTitle "playchess.com"]
[Source "ChessBase"]
[SourceQuality "1"]
[TimeControl "180+2"]

1. e4 {[%emt 0:00:00]} c5 {[%emt 0:00:00]} 2. Nf3 {[%emt 0:00:10]} Nf6 {
[%emt 0:00:01]} 3. e5 {[%emt 0:00:04]} Nd5 {[%emt 0:00:01]} 4. Nc3 {[%emt 0:00:
01]} Nxc3 {[%emt 0:00:06]} 5. dxc3 {[%emt 0:00:00]} Nc6 {[%emt 0:00:00]} 6. Bd3
{[%emt 0:00:27]} e6 {[%emt 0:00:03]} 7. Bf4 {[%emt 0:00:09]} Qb6 {[%emt 0:00:
06]} 8. Nd2 {[%emt 0:00:22]} Qxb2 {[%emt 0:00:12]} 9. O-O {[%emt 0:00:18]} Qb6
{[%emt 0:00:27]} 10. Qh5 {[%emt 0:00:37]} Qd8 {[%emt 0:00:28]} 11. Ne4 {
[%emt 0:00:13]} b6 {[%emt 0:00:16]} 12. Rad1 {[%emt 0:00:17]} Bb7 {[%emt 0:00:
07]} 13. Rfe1 {[%emt 0:00:15]} Qc7 {[%emt 0:00:33]} 14. Ng5 {[%emt 0:00:07]} g6
{[%emt 0:00:07]} 15. Qh3 {[%emt 0:00:19]} Ne7 {[%emt 0:00:21]} 16. c4 {[%emt 0:
00:07]} h6 {[%emt 0:00:12]} 17. Ne4 {[%emt 0:00:00]} Bxe4 {[%emt 0:00:00]} 18.
Bxe4 {[%emt 0:00:04]} Nc6 {[%emt 0:00:09]} 19. Qf3 {[%emt 0:00:08]} Rc8 {
[%emt 0:00:00]} 20. Bg3 {[%emt 0:00:01]} Bg7 {[%emt 0:00:02]} 21. Rd6 {[%emt 0:
00:01]} Nxe5 {[%emt 0:00:16]} 22. Qd1 {[%emt 0:00:00]} O-O {[%emt 0:00:10]} 23.
Bxe5 {[%emt 0:00:04]} Bxe5 {[%emt 0:00:00]} 24. Rxd7 {[%emt 0:00:04]} Qb8 {
[%emt 0:00:09]} 25. g3 {[%emt 0:00:01]} Rcd8 {[%emt 0:00:00]} 26. Rxd8 {
[%emt 0:00:02]} Rxd8 {[%emt 0:00:01]} 27. Qg4 {[%emt 0:00:03]} Bg7 {[%emt 0:00:
01]} 28. h4 {[%emt 0:00:00]} h5 {[%emt 0:00:06]} 29. Qf3 {[%emt 0:00:00]} Qd6 {
[%emt 0:00:00]} 30. Bd3 {[%emt 0:00:00]} Bd4 {[%emt 0:00:02]} 31. Kf1 {[%emt 0:
00:06]} Qe7 {[%emt 0:00:00]} 32. Qe4 {[%emt 0:00:00]} Qf6 {[%emt 0:00:06]} 33.
Re2 {[%emt 0:00:01]} Kg7 {[%emt 0:00:00]} 34. a4 {[%emt 0:00:00]} Bc3 {[%emt 0:
00:00]} 35. Kg2 {[%emt 0:00:00]} Bd4 {[%emt 0:00:01]} 36. Qb7 {[%emt 0:00:02]}
e5 {[%emt 0:00:04]} 37. Qxa7 {[%emt 0:00:03]} Qe6 {[%emt 0:00:00]} 38. Qb7 {
[%emt 0:00:02]} Rd7 {[%emt 0:00:00]} 39. Qa8 {[%emt 0:00:01]} f5 {[%emt 0:00:
02]} 40. f3 {[%emt 0:00:01]} Re7 {[%emt 0:00:08]} 41. a5 {[%emt 0:00:00]} bxa5
{[%emt 0:00:01]} 42. Qxa5 {[%emt 0:00:02]} Qf6 {[%emt 0:00:01]} 43. c3 {
[%emt 0:00:07]} e4 {[%emt 0:00:00]} 44. fxe4 {[%emt 0:00:02]} Bxc3 {[%emt 0:00:
00]} 45. Qxc5 {[%emt 0:00:04]} Bd4 {[%emt 0:00:00]} 46. Qd5 {[%emt 0:00:04]}
fxe4 {[%emt 0:00:07]} 47. Bxe4 {[%emt 0:00:02]} Qe5 {[%emt 0:00:05]} 48. Qxe5+
{[%emt 0:00:01]} Rxe5 {[%emt 0:00:04]} 49. Bd3 {[%emt 0:00:00]} Rxe2+ {[%emt 0:
00:00]} 1/2-1/2

[Event "RUS-ch Blitz 2021"]
[Site "Sochi"]
[Date "2021.10.11"]
[Round "4.5"]
[White "Tsydypov, Zhamsaran"]
[Black "Pogosyan, Stefan"]
[Result "1/2-1/2"]
[ECO "B00"]
[WhiteElo "2526"]
[BlackElo "2407"]
[Annotator "ChessBase"]
[PlyCount "54"]
[EventDate "2021.10.11"]
[EventType "blitz"]
[EventCountry "RUS"]
[SourceTitle "playchess.com"]
[Source "ChessBase"]
[SourceQuality "1"]
[TimeControl "180+2"]

1. e4 {[%emt 0:00:00]} Nc6 {[%emt 0:00:00]} 2. d4 {[%emt 0:00:15]} d5 {[%emt 0:
00:08]} 3. Nc3 {[%emt 0:00:02]} Nf6 {[%emt 0:00:00]} 4. e5 {[%emt 0:00:10]} Nd7
{[%emt 0:00:00]} 5. Nf3 {[%emt 0:00:21]} Nb6 {[%emt 0:00:00]} 6. h3 {[%emt 0:
00:07]} Bf5 {[%emt 0:00:09]} 7. a3 {[%emt 0:00:11]} e6 {[%emt 0:00:00]} 8. Bd3
{[%emt 0:00:02]} Bxd3 {[%emt 0:00:06]} 9. Qxd3 {[%emt 0:00:04]} Be7 {[%emt 0:
00:02]} 10. O-O {[%emt 0:00:03]} O-O {[%emt 0:00:00]} 11. Ne2 {[%emt 0:00:06]}
f5 {[%emt 0:00:32]} 12. Nf4 {[%emt 0:00:22]} Qd7 {[%emt 0:00:07]} 13. b3 {
[%emt 0:00:03]} a5 {[%emt 0:00:12]} 14. c4 {[%emt 0:00:06]} dxc4 {[%emt 0:00:
48]} 15. bxc4 {[%emt 0:00:00]} Rad8 {[%emt 0:00:02]} 16. Rd1 {[%emt 0:00:40]}
g5 {[%emt 0:00:00]} 17. Nxg5 {[%emt 0:00:18]} Bxg5 {[%emt 0:00:03]} 18. Qg3 {
[%emt 0:00:00]} Kh8 {[%emt 0:00:37]} 19. Qxg5 {[%emt 0:00:06]} Nxe5 {[%emt 0:
00:08]} 20. dxe5 {[%emt 0:00:17]} Qxd1+ {[%emt 0:00:06]} 21. Kh2 {[%emt 0:00:
00]} Qd7 {[%emt 0:00:05]} 22. Be3 {[%emt 0:00:15]} Nxc4 {[%emt 0:00:08]} 23.
Rd1 {[%emt 0:00:13]} Qxd1 {[%emt 0:00:23]} 24. Ng6+ {[%emt 0:00:00]} hxg6 {
[%emt 0:00:00]} 25. Qh6+ {[%emt 0:00:00]} Kg8 {[%emt 0:00:00]} 26. Qxg6+ {
[%emt 0:00:08]} Kh8 {[%emt 0:00:00]} 27. Qh6+ {[%emt 0:00:00]} Kg8 {[%emt 0:00:
00]} 1/2-1/2

[Event "RUS-ch Blitz 2021"]
[Site "Sochi"]
[Date "2021.10.11"]
[Round "4.6"]
[White "Indzhiev, Aldar"]
[Black "Alekseev, Evgeny"]
[Result "0-1"]
[ECO "D35"]
[WhiteElo "2101"]
[BlackElo "2602"]
[Annotator "ChessBase"]
[PlyCount "100"]
[EventDate "2021.10.11"]
[EventType "blitz"]
[EventCountry "RUS"]
[SourceTitle "playchess.com"]
[Source "ChessBase"]
[SourceQuality "1"]
[TimeControl "180+2"]

1. d4 {[%emt 0:00:04]} Nf6 {[%emt 0:00:00]} 2. c4 {[%emt 0:00:00]} e6 {[%emt 0:
00:00]} 3. Nc3 {[%emt 0:00:06]} d5 {[%emt 0:00:04]} 4. cxd5 {[%emt 0:00:00]}
exd5 {[%emt 0:00:00]} 5. Bg5 {[%emt 0:00:00]} c6 {[%emt 0:00:09]} 6. e3 {
[%emt 0:00:00]} Nbd7 {[%emt 0:00:00]} 7. Bd3 {[%emt 0:00:00]} Bd6 {[%emt 0:00:
00]} 8. Qc2 {[%emt 0:00:05]} Nf8 {[%emt 0:00:00]} 9. Nf3 {[%emt 0:00:07]} Ng6 {
[%emt 0:00:00]} 10. h4 {[%emt 0:00:35]} h6 {[%emt 0:00:13]} 11. Bxg6 {[%emt 0:
00:10]} hxg5 {[%emt 0:00:05]} 12. Bd3 {[%emt 0:00:00]} gxh4 {[%emt 0:00:25]}
13. Rxh4 {[%emt 0:00:06]} Rxh4 {[%emt 0:00:04]} 14. Nxh4 {[%emt 0:00:00]} Be6 {
[%emt 0:00:12]} 15. Nf5 {[%emt 0:00:07]} Bf8 {[%emt 0:00:02]} 16. O-O-O {
[%emt 0:00:09]} Qa5 {[%emt 0:00:16]} 17. Kb1 {[%emt 0:00:10]} O-O-O {[%emt 0:
00:00]} 18. Rh1 {[%emt 0:00:00]} Kb8 {[%emt 0:00:13]} 19. Ng3 {[%emt 0:00:29]}
g6 {[%emt 0:00:05]} 20. Nge2 {[%emt 0:00:22]} Bd6 {[%emt 0:00:07]} 21. g3 {
[%emt 0:00:05]} Qc7 {[%emt 0:00:17]} 22. Nf4 {[%emt 0:00:00]} Bc8 {[%emt 0:00:
00]} 23. Ka1 {[%emt 0:00:09]} Qe7 {[%emt 0:00:00]} 24. Na4 {[%emt 0:00:08]} Ng4
{[%emt 0:00:28]} 25. a3 {[%emt 0:00:12]} Qf6 {[%emt 0:00:16]} 26. Rh7 {[%emt 0:
00:20]} Rh8 {[%emt 0:00:16]} 27. Rxh8 {[%emt 0:00:09]} Qxh8 {[%emt 0:00:00]}
28. Qe2 {[%emt 0:00:07]} Qh2 {[%emt 0:00:06]} 29. f3 {[%emt 0:00:15]} Qxe2 {
[%emt 0:00:00]} 30. Nxe2 {[%emt 0:00:01]} Nxe3 {[%emt 0:00:04]} 31. Nac3 {
[%emt 0:00:00]} Nf1 {[%emt 0:00:08]} 32. g4 {[%emt 0:00:04]} Nh2 {[%emt 0:00:
11]} 33. Ng1 {[%emt 0:00:03]} Bf4 {[%emt 0:00:07]} 34. Nce2 {[%emt 0:00:04]}
Be3 {[%emt 0:00:00]} 35. Kb1 {[%emt 0:00:00]} b6 {[%emt 0:00:04]} 36. Kc2 {
[%emt 0:00:00]} c5 {[%emt 0:00:02]} 37. dxc5 {[%emt 0:00:05]} bxc5 {[%emt 0:00:
00]} 38. b3 {[%emt 0:00:03]} Kc7 {[%emt 0:00:02]} 39. Kd1 {[%emt 0:00:00]} Kd6
{[%emt 0:00:02]} 40. Bb5 {[%emt 0:00:02]} Be6 {[%emt 0:00:04]} 41. Kc2 {
[%emt 0:00:02]} f5 {[%emt 0:00:08]} 42. gxf5 {[%emt 0:00:00]} gxf5 {[%emt 0:00:
01]} 43. Kd3 {[%emt 0:00:02]} f4 {[%emt 0:00:03]} 44. Kc2 {[%emt 0:00:02]} Ke5
{[%emt 0:00:01]} 45. a4 {[%emt 0:00:03]} Bf5+ {[%emt 0:00:01]} 46. Bd3 {
[%emt 0:00:00]} Be6 {[%emt 0:00:02]} 47. a5 {[%emt 0:00:02]} Bf7 {[%emt 0:00:
02]} 48. a6 {[%emt 0:00:05]} Bh5 {[%emt 0:00:01]} 49. Bh7 {[%emt 0:00:02]} Nxf3
{[%emt 0:00:01]} 50. Kd3 {[%emt 0:00:04]} Nxg1 {[%emt 0:00:05]} 0-1

[Event "RUS-ch Blitz 2021"]
[Site "Sochi"]
[Date "2021.10.11"]
[Round "4.7"]
[White "Timofeev, Artyom"]
[Black "Gavrilov, Oleg"]
[Result "1-0"]
[ECO "A12"]
[WhiteElo "2586"]
[BlackElo "2356"]
[Annotator "ChessBase"]
[PlyCount "183"]
[EventDate "2021.10.11"]
[EventType "blitz"]
[EventCountry "RUS"]
[SourceTitle "playchess.com"]
[Source "ChessBase"]
[SourceQuality "1"]
[TimeControl "180+2"]

1. c4 {[%emt 0:00:00]} c6 {[%emt 0:00:00]} 2. Nf3 {[%emt 0:00:09]} d5 {[%emt 0:
00:01]} 3. b3 {[%emt 0:00:00]} Nf6 {[%emt 0:00:00]} 4. Bb2 {[%emt 0:00:00]} Bf5
{[%emt 0:00:12]} 5. Bxf6 {[%emt 0:00:00]} gxf6 {[%emt 0:00:01]} 6. e3 {[%emt 0:
00:02]} e6 {[%emt 0:00:11]} 7. Nc3 {[%emt 0:00:02]} Bd6 {[%emt 0:00:23]} 8. Be2
{[%emt 0:00:13]} Nd7 {[%emt 0:00:05]} 9. O-O {[%emt 0:00:09]} Bg4 {[%emt 0:00:
17]} 10. Rc1 {[%emt 0:00:07]} a6 {[%emt 0:00:03]} 11. cxd5 {[%emt 0:00:05]}
cxd5 {[%emt 0:00:03]} 12. Nd4 {[%emt 0:00:00]} Bxe2 {[%emt 0:00:03]} 13. Ncxe2
{[%emt 0:00:01]} O-O {[%emt 0:00:33]} 14. Nf4 {[%emt 0:00:02]} f5 {[%emt 0:00:
17]} 15. Qh5 {[%emt 0:00:15]} Qf6 {[%emt 0:00:02]} 16. Nfe2 {[%emt 0:00:15]}
Rac8 {[%emt 0:00:03]} 17. a4 {[%emt 0:00:04]} Ba3 {[%emt 0:00:05]} 18. Rxc8 {
[%emt 0:00:08]} Rxc8 {[%emt 0:00:00]} 19. h3 {[%emt 0:00:03]} Ne5 {[%emt 0:00:
08]} 20. Rb1 {[%emt 0:00:23]} Bb4 {[%emt 0:00:06]} 21. Rd1 {[%emt 0:00:05]} Ng6
{[%emt 0:00:06]} 22. Qf3 {[%emt 0:00:00]} Qe5 {[%emt 0:00:09]} 23. d3 {[%emt 0:
00:08]} Rc7 {[%emt 0:00:04]} 24. g3 {[%emt 0:00:02]} Bd6 {[%emt 0:00:20]} 25.
Nf4 {[%emt 0:00:10]} Rc3 {[%emt 0:00:08]} 26. Nfe2 {[%emt 0:00:12]} Rc7 {
[%emt 0:00:00]} 27. h4 {[%emt 0:00:05]} Qf6 {[%emt 0:00:00]} 28. Kg2 {[%emt 0:
00:09]} Ne5 {[%emt 0:00:13]} 29. Qh5 {[%emt 0:00:01]} Qg6 {[%emt 0:00:04]} 30.
Qxg6+ {[%emt 0:00:01]} hxg6 {[%emt 0:00:00]} 31. Nf3 {[%emt 0:00:15]} Rc2 {
[%emt 0:00:04]} 32. Ned4 {[%emt 0:00:03]} Rc3 {[%emt 0:00:02]} 33. Nxe5 {
[%emt 0:00:33]} Bxe5 {[%emt 0:00:02]} 34. Nf3 {[%emt 0:00:00]} Bf6 {[%emt 0:00:
00]} 35. b4 {[%emt 0:00:04]} Be7 {[%emt 0:00:05]} 36. b5 {[%emt 0:00:00]} axb5
{[%emt 0:00:00]} 37. axb5 {[%emt 0:00:00]} Bf6 {[%emt 0:00:03]} 38. d4 {
[%emt 0:00:15]} Rb3 {[%emt 0:00:00]} 39. Rc1 {[%emt 0:00:00]} Rxb5 {[%emt 0:00:
00]} 40. Rc8+ {[%emt 0:00:03]} Kg7 {[%emt 0:00:00]} 41. Rc7 {[%emt 0:00:00]}
Rb2 {[%emt 0:00:00]} 42. Ne1 {[%emt 0:00:04]} Rb3 {[%emt 0:00:05]} 43. Kf3 {
[%emt 0:00:00]} b5 {[%emt 0:00:00]} 44. Rb7 {[%emt 0:00:01]} g5 {[%emt 0:00:05]
} 45. hxg5 {[%emt 0:00:00]} Bxg5 {[%emt 0:00:00]} 46. Ke2 {[%emt 0:00:05]} Rb2+
{[%emt 0:00:04]} 47. Kf3 {[%emt 0:00:00]} Rb3 {[%emt 0:00:06]} 48. Ke2 {
[%emt 0:00:00]} Rb2+ {[%emt 0:00:00]} 49. Kf3 {[%emt 0:00:00]} Bf6 {[%emt 0:00:
04]} 50. Nd3 {[%emt 0:00:00]} Rb3 {[%emt 0:00:01]} 51. Nc5 {[%emt 0:00:01]} Rb1
{[%emt 0:00:08]} 52. Nxe6+ {[%emt 0:00:02]} Kg8 {[%emt 0:00:02]} 53. Nc7 {
[%emt 0:00:03]} Bg5 {[%emt 0:00:11]} 54. Rxb5 {[%emt 0:00:03]} Rxb5 {[%emt 0:
00:04]} 55. Nxb5 {[%emt 0:00:00]} Kf8 {[%emt 0:00:01]} 56. Nc7 {[%emt 0:00:02]}
Ke7 {[%emt 0:00:02]} 57. Nxd5+ {[%emt 0:00:00]} Kd6 {[%emt 0:00:01]} 58. Nc3 {
[%emt 0:00:02]} Ke6 {[%emt 0:00:01]} 59. Ke2 {[%emt 0:00:00]} Bd8 {[%emt 0:00:
01]} 60. Kd3 {[%emt 0:00:03]} Ba5 {[%emt 0:00:00]} 61. f3 {[%emt 0:00:00]} Bb4
{[%emt 0:00:01]} 62. Ne2 {[%emt 0:00:00]} Be1 {[%emt 0:00:00]} 63. e4 {[%emt 0:
00:03]} fxe4+ {[%emt 0:00:02]} 64. fxe4 {[%emt 0:00:01]} Kd6 {[%emt 0:00:03]}
65. Ke3 {[%emt 0:00:00]} Ke6 {[%emt 0:00:02]} 66. Kf3 {[%emt 0:00:00]} Kf6 {
[%emt 0:00:01]} 67. Nf4 {[%emt 0:00:02]} Kg5 {[%emt 0:00:00]} 68. d5 {[%emt 0:
00:04]} Kf6 {[%emt 0:00:01]} 69. Nd3 {[%emt 0:00:02]} Bc3 {[%emt 0:00:02]} 70.
Kf4 {[%emt 0:00:03]} Bd2+ {[%emt 0:00:00]} 71. Kf3 {[%emt 0:00:01]} Bc3 {
[%emt 0:00:01]} 72. g4 {[%emt 0:00:00]} Ke7 {[%emt 0:00:10]} 73. e5 {[%emt 0:
00:01]} Bd4 {[%emt 0:00:03]} 74. Ke4 {[%emt 0:00:02]} Bc3 {[%emt 0:00:01]} 75.
Kf5 {[%emt 0:00:00]} Bd4 {[%emt 0:00:00]} 76. Nf4 {[%emt 0:00:03]} Bc3 {
[%emt 0:00:02]} 77. d6+ {[%emt 0:00:01]} Kd7 {[%emt 0:00:00]} 78. Kf6 {[%emt 0:
00:02]} Ke8 {[%emt 0:00:03]} 79. Nd5 {[%emt 0:00:00]} Bd4 {[%emt 0:00:02]} 80.
Nc7+ {[%emt 0:00:01]} Kd7 {[%emt 0:00:00]} 81. Nb5 {[%emt 0:00:02]} Bb2 {
[%emt 0:00:02]} 82. Nc7 {[%emt 0:00:03]} Bc3 {[%emt 0:00:02]} 83. Nd5 {[%emt 0:
00:00]} Bb2 {[%emt 0:00:01]} 84. Ne3 {[%emt 0:00:01]} Ke8 {[%emt 0:00:02]} 85.
Nf5 {[%emt 0:00:01]} Ba1 {[%emt 0:00:02]} 86. g5 {[%emt 0:00:01]} Bb2 {[%emt 0:
00:01]} 87. Nh4 {[%emt 0:00:03]} Bc3 {[%emt 0:00:03]} 88. Nf3 {[%emt 0:00:03]}
Bb2 {[%emt 0:00:00]} 89. g6 {[%emt 0:00:02]} fxg6 {[%emt 0:00:01]} 90. Ke6 {
[%emt 0:00:02]} Bc3 {[%emt 0:00:05]} 91. Ng5 {[%emt 0:00:02]} Ba5 {[%emt 0:00:
02]} 92. Nf7 {[%emt 0:00:03]} 1-0

[Event "RUS-ch Blitz 2021"]
[Site "Sochi"]
[Date "2021.10.11"]
[Round "4.8"]
[White "Somkin, Kirill"]
[Black "Kobalia, Mikhail"]
[Result "1-0"]
[ECO "B12"]
[WhiteElo "2186"]
[BlackElo "2600"]
[Annotator "ChessBase"]
[PlyCount "93"]
[EventDate "2021.10.11"]
[EventType "blitz"]
[EventCountry "RUS"]
[SourceTitle "playchess.com"]
[Source "ChessBase"]
[SourceQuality "1"]
[TimeControl "180+2"]

1. e4 {[%emt 0:00:00]} c6 {[%emt 0:00:04]} 2. d4 {[%emt 0:00:02]} d5 {[%emt 0:
00:00]} 3. e5 {[%emt 0:00:00]} Bf5 {[%emt 0:00:06]} 4. Ne2 {[%emt 0:00:02]} e6
{[%emt 0:00:06]} 5. Ng3 {[%emt 0:00:00]} Bg6 {[%emt 0:00:00]} 6. h4 {[%emt 0:
00:00]} h6 {[%emt 0:00:04]} 7. h5 {[%emt 0:00:01]} Bh7 {[%emt 0:00:00]} 8. Bd3
{[%emt 0:00:00]} Bxd3 {[%emt 0:00:00]} 9. cxd3 {[%emt 0:00:00]} Qb6 {[%emt 0:
00:15]} 10. Be3 {[%emt 0:00:03]} Qxb2 {[%emt 0:00:07]} 11. Nd2 {[%emt 0:00:02]}
Qb6 {[%emt 0:00:03]} 12. O-O {[%emt 0:00:01]} Nd7 {[%emt 0:00:06]} 13. f4 {
[%emt 0:00:27]} f5 {[%emt 0:00:01]} 14. exf6 {[%emt 0:00:04]} Ngxf6 {[%emt 0:
00:05]} 15. f5 {[%emt 0:00:02]} e5 {[%emt 0:00:10]} 16. Rb1 {[%emt 0:00:09]}
Qc7 {[%emt 0:00:00]} 17. dxe5 {[%emt 0:00:12]} Nxe5 {[%emt 0:00:00]} 18. d4 {
[%emt 0:00:26]} Nf7 {[%emt 0:00:36]} 19. Bf4 {[%emt 0:00:16]} Bd6 {[%emt 0:00:
12]} 20. Qe2+ {[%emt 0:00:22]} Kf8 {[%emt 0:00:00]} 21. Bxd6+ {[%emt 0:00:28]}
Nxd6 {[%emt 0:00:02]} 22. Nf3 {[%emt 0:00:00]} Kg8 {[%emt 0:00:00]} 23. Ne5 {
[%emt 0:00:00]} Kh7 {[%emt 0:00:00]} 24. Qf3 {[%emt 0:00:20]} Rhe8 {[%emt 0:00:
06]} 25. Ne2 {[%emt 0:00:12]} Nde4 {[%emt 0:00:54]} 26. Nf4 {[%emt 0:00:16]}
Nd2 {[%emt 0:00:21]} 27. Qg3 {[%emt 0:00:00]} Nxb1 {[%emt 0:00:00]} 28. Ne6 {
[%emt 0:00:22]} Qe7 {[%emt 0:00:09]} 29. Rxb1 {[%emt 0:00:06]} Kg8 {[%emt 0:00:
09]} 30. Ng6 {[%emt 0:00:02]} Qf7 {[%emt 0:00:04]} 31. Ne5 {[%emt 0:00:04]} Qe7
{[%emt 0:00:02]} 32. Ng6 {[%emt 0:00:05]} Qf7 {[%emt 0:00:17]} 33. Ne5 {
[%emt 0:00:00]} Nxh5 {[%emt 0:00:02]} 34. Qf3 {[%emt 0:00:00]} Qf6 {[%emt 0:00:
06]} 35. Qxh5 {[%emt 0:00:02]} Re7 {[%emt 0:00:00]} 36. Ng6 {[%emt 0:00:02]}
Rf7 {[%emt 0:00:00]} 37. Rf1 {[%emt 0:00:04]} b6 {[%emt 0:00:02]} 38. Ne5 {
[%emt 0:00:00]} Re7 {[%emt 0:00:04]} 39. Nxc6 {[%emt 0:00:03]} Rb7 {[%emt 0:00:
02]} 40. Ne5 {[%emt 0:00:03]} Rc8 {[%emt 0:00:01]} 41. Ng4 {[%emt 0:00:00]} Qf7
{[%emt 0:00:02]} 42. Qh4 {[%emt 0:00:02]} Re8 {[%emt 0:00:04]} 43. Qg3 {
[%emt 0:00:03]} Kh7 {[%emt 0:00:01]} 44. Ne5 {[%emt 0:00:00]} Qf6 {[%emt 0:00:
01]} 45. Ng4 {[%emt 0:00:03]} Qf7 {[%emt 0:00:01]} 46. Ne5 {[%emt 0:00:01]} Qf6
{[%emt 0:00:01]} 47. Ng4 {[%emt 0:00:00]} 1-0

[Event "RUS-ch Blitz 2021"]
[Site "Sochi"]
[Date "2021.10.11"]
[Round "4.9"]
[White "Trushnikov, Sergey"]
[Black "Lysyj, Igor"]
[Result "1/2-1/2"]
[ECO "C47"]
[WhiteElo "2525"]
[BlackElo "2603"]
[Annotator "ChessBase"]
[PlyCount "35"]
[EventDate "2021.10.11"]
[EventType "blitz"]
[EventCountry "RUS"]
[SourceTitle "playchess.com"]
[Source "ChessBase"]
[SourceQuality "1"]
[TimeControl "180+2"]

1. e4 {[%emt 0:00:04]} e5 {[%emt 0:00:00]} 2. Nf3 {[%emt 0:00:00]} Nc6 {
[%emt 0:00:00]} 3. Nc3 {[%emt 0:00:06]} Nf6 {[%emt 0:00:02]} 4. d4 {[%emt 0:00:
00]} exd4 {[%emt 0:00:00]} 5. Nxd4 {[%emt 0:00:00]} Nxe4 {[%emt 0:00:00]} 6.
Nxe4 {[%emt 0:00:00]} Qe7 {[%emt 0:00:00]} 7. f3 {[%emt 0:00:04]} d5 {[%emt 0:
00:05]} 8. Bb5 {[%emt 0:00:00]} Bd7 {[%emt 0:00:01]} 9. Bxc6 {[%emt 0:00:01]}
bxc6 {[%emt 0:00:02]} 10. O-O {[%emt 0:00:00]} dxe4 {[%emt 0:00:07]} 11. Re1 {
[%emt 0:00:00]} O-O-O {[%emt 0:00:04]} 12. Rxe4 {[%emt 0:00:00]} Qf6 {[%emt 0:
00:04]} 13. Qe2 {[%emt 0:00:46]} c5 {[%emt 0:00:09]} 14. Nb3 {[%emt 0:00:06]}
Qb6 {[%emt 0:00:01]} 15. Be3 {[%emt 0:00:14]} Bc6 {[%emt 0:00:08]} 16. Re5 {
[%emt 0:00:07]} f6 {[%emt 0:00:10]} 17. Bxc5 {[%emt 0:00:21]} Bxc5+ {[%emt 0:
00:14]} 18. Rxc5 {[%emt 0:00:00]} 1/2-1/2